fUST/lending_fUST_20250213
["ID","MTS","AMOUNT","RATE_DAILY","PERIOD"]
[352879877,1739386235005,-500.0,0.00010958,2]
[352879878,1739386235017,-1251.34,0.00010958,2]
[352879879,1739386235029,-500.0,0.00010958,2]
[352879880,1739386235045,-500.0,0.00010958,2]
[352879881,1739386235057,-500.0,0.00010958,2]
[352879882,1739386235069,-500.0,0.00010958,2]
[352879883,1739386235081,-188.41224194,0.00010958,2]
[352879884,1739386235093,-500.0,0.00010958,2]
[352879885,1739386235104,-500.0,0.00010958,2]
[352879886,1739386235116,-534.59254846,0.00010958,2]
[352879887,1739386235128,-500.0,0.00010958,2]
[352879888,1739386235140,-500.0,0.00010958,2]
[352879889,1739386235153,-500.0,0.00010958,2]
[352879890,1739386235164,-511.50051567,0.00010958,2]
[352879891,1739386235177,-500.0,0.00010958,2]
[352879892,1739386235189,-500.0,0.00010958,2]
[352879893,1739386235199,-500.0,0.00010958,2]
[352879894,1739386235209,-500.0,0.00010958,2]
[352879895,1739386235220,-2247.62711706,0.00011032,2]
[352879896,1739386235231,-500.0,0.00011094,2]
[352879897,1739386235242,-500.0,0.00011095,2]
[352879898,1739386235253,-500.0,0.00011095,2]
[352879899,1739386235266,-500.0,0.00011095,2]
[352879900,1739386235279,-500.0,0.00011095,2]
[352879901,1739386235291,-500.0,0.00011095,2]
[352879902,1739386235303,-500.0,0.00011095,2]
[352879903,1739386235313,-401.59653196,0.00011095,2]
[352879904,1739386235323,-500.0,0.00011095,2]
[352879905,1739386235334,-500.0,0.00011095,2]
[352879906,1739386235345,-500.0,0.00011095,2]
[352879907,1739386235356,-500.0,0.00011095,2]
[352879908,1739386235367,-195.04482718,0.00011095,2]
[352879909,1739386235379,-500.0,0.00011095,2]
[352879910,1739386235391,-500.0,0.00011095,2]
[352879911,1739386235402,-500.0,0.00011095,2]
[352879912,1739386235414,-500.0,0.00011095,2]
[352879913,1739386235424,-500.0,0.00011095,2]
[352879914,1739386235437,-500.0,0.00011095,2]
[352879915,1739386235448,-500.0,0.00011095,2]
[352879916,1739386235463,-500.0,0.00011095,2]
[352879917,1739386235473,-500.0,0.00011095,2]
[352879918,1739386235484,-295.35080795,0.00011095,2]
[352879919,1739386235495,-500.0,0.00011095,2]
[352879920,1739386235506,-500.0,0.00011095,2]
[352879921,1739386235518,-500.0,0.00011095,2]
[352879922,1739386235530,-500.0,0.00011095,2]
[352879923,1739386235541,-500.0,0.00011095,2]
[352879924,1739386235552,-500.0,0.00011095,2]
[352879925,1739386235563,-612.57339544,0.00011095,2]
[352879926,1739386235575,-500.0,0.00011095,2]
[352879927,1739386235586,-500.0,0.00011095,2]
[352879928,1739386235597,-500.0,0.00011095,2]
[352879929,1739386235608,-500.0,0.00011095,2]
[352879930,1739386235620,-500.0,0.00011095,2]
[352879931,1739386235631,-500.0,0.00011095,2]
[352879932,1739386235642,-500.0,0.00011095,2]
[352879933,1739386235653,-500.0,0.00011095,2]
[352879934,1739386235663,-500.0,0.00011095,2]
[352879935,1739386235674,-275.33045918,0.00011095,2]
[352879936,1739386235690,-500.0,0.00011095,2]
[352879937,1739386235701,-264.90579057,0.00011095,2]
[352879938,1739386235712,-500.0,0.00011095,2]
[352879939,1739386235722,-500.0,0.00011095,2]
[352879940,1739386235733,-500.0,0.00011095,2]
[352879941,1739386235743,-843.29,0.00011095,2]
[352879942,1739386235754,-500.0,0.00011095,2]
[352879943,1739386235764,-500.0,0.00011095,2]
[352879944,1739386235775,-500.0,0.00011095,2]
[352879945,1739386235787,-500.0,0.00011095,2]
[352879946,1739386235798,-500.0,0.00011095,2]
[352879947,1739386235810,-500.0,0.00011095,2]
[352879948,1739386235822,-500.0,0.00011095,2]
[352879949,1739386235832,-500.0,0.00011095,2]
[352879950,1739386235845,-500.0,0.00011095,2]
[352879951,1739386235857,-500.0,0.00011095,2]
[352879952,1739386235869,-500.0,0.00011095,2]
[352879953,1739386235880,-561.70437769,0.00011095,2]
[352879954,1739386235891,-500.0,0.00011095,2]
[352879955,1739386235902,-500.0,0.00011095,2]
[352879956,1739386235913,-2850.7,0.00011095,2]
[352879957,1739386235924,-500.0,0.00011095,2]
[352879958,1739386235938,-500.0,0.00011095,2]
[352879959,1739386235949,-500.0,0.00011095,2]
[352879960,1739386235959,-500.0,0.00011095,2]
[352879961,1739386236097,-500.0,0.00011095,2]
[352879962,1739386236108,-500.0,0.00011095,2]
[352879963,1739386236118,-500.0,0.00011095,2]
[352879964,1739386236127,-588.16,0.00011095,2]
[352879965,1739386236136,-500.0,0.00011095,2]
[352879966,1739386236146,-500.0,0.00011095,2]
[352879967,1739386236155,-1251.34,0.00011095,2]
[352879968,1739386236164,-500.0,0.00011095,2]
[352879969,1739386236173,-500.0,0.00011095,2]
[352879970,1739386236185,-523.56564249,0.00011095,2]
[352879971,1739386236194,-502.28828291,0.00011095,2]
[352879972,1739386236203,-500.0,0.00011095,2]
[352879973,1739386236212,-500.0,0.00011095,2]
[352879974,1739386236221,-500.0,0.00011095,2]
[352879975,1739386236231,-500.0,0.00011095,2]
[352879976,1739386236240,-456.65338561,0.00011231,2]
[352879977,1739386236250,-609.76,0.00011232,2]
[352879978,1739386236259,-500.0,0.00011232,2]
[352879979,1739386236268,-500.0,0.00011232,2]
[352879980,1739386236277,-500.0,0.00011232,2]
[352879981,1739386236286,-500.0,0.00011232,2]
[352879982,1739386236295,-249.599996,0.00011232,2]
[352879983,1739386236305,-500.0,0.00011232,2]
[352879984,1739386236314,-500.0,0.00011232,2]
[352879985,1739386236323,-500.0,0.00011232,2]
[352879986,1739386236332,-500.0,0.00011232,2]
[352879987,1739386236342,-500.0,0.00011232,2]
[352879988,1739386236353,-169.9,0.00011232,2]
[352879989,1739386236364,-843.29,0.00011232,2]
[352879990,1739386236373,-500.0,0.00011232,2]
[352879991,1739386236384,-500.0,0.00011232,2]
[352879992,1739386236394,-500.0,0.00011232,2]
[352879993,1739386236404,-500.0,0.00011232,2]
[352879994,1739386236414,-2850.7,0.00011232,2]
[352879995,1739386236423,-500.0,0.00011232,2]
[352879996,1739386236435,-500.0,0.00011232,2]
[352879997,1739386236444,-500.0,0.00011232,2]
[352879998,1739386236456,-608.48,0.00011232,2]
[352879999,1739386236466,-500.0,0.00011232,2]
[352880000,1739386236476,-588.16,0.00011232,2]
[352880001,1739386236485,-1251.34,0.00011232,2]
[352880002,1739386236496,-500.0,0.00011232,2]
[352880003,1739386236505,-500.0,0.00011232,2]
[352880004,1739386236515,-500.0,0.00011232,2]
[352880005,1739386236525,-500.0,0.00011232,2]
[352880006,1739386236535,-410.9183062,0.00011367,2]
[352880007,1739386236546,-500.0,0.00011368,2]
[352880008,1739386236555,-500.0,0.00011369,2]
[352880009,1739386236565,-500.0,0.00011369,2]
[352880010,1739386236574,-500.0,0.00011369,2]
[352880011,1739386236583,-302.6,0.00011369,2]
[352880012,1739386236594,-563.54,0.00011369,2]
[352880013,1739386236604,-843.29,0.00011369,2]
[352880014,1739386236615,-500.0,0.00011369,2]
[352880015,1739386236624,-500.0,0.00011369,2]
[352880016,1739386236634,-2850.7,0.00011369,2]
[352880017,1739386236644,-500.0,0.00011369,2]
[352880018,1739386236653,-588.16,0.00011369,2]
[352880019,1739386236662,-1251.34,0.00011369,2]
[352880020,1739386236671,-500.0,0.00011369,2]
[352880021,1739386236681,-500.0,0.00011506,2]
[352880022,1739386236690,-500.0,0.00011506,2]
[352880023,1739386236700,-500.0,0.00011506,2]
[352880024,1739386236710,-843.29,0.00011506,2]
[352880025,1739386236719,-500.0,0.00011506,2]
[352880026,1739386236728,-500.0,0.00011506,2]
[352880027,1739386236738,-2850.7,0.00011506,2]
[352880028,1739386236747,-500.0,0.00011506,2]
[352880029,1739386236757,-588.16,0.00011506,2]
[352880030,1739386236767,-1251.34,0.00011506,2]
[352880031,1739386236776,-500.0,0.00011642,2]
[352880032,1739386236786,-500.0,0.00011643,2]
[352880033,1739386236796,-500.0,0.00011643,2]
[352880034,1739386236808,-500.0,0.00011643,2]
[352880035,1739386236818,-843.29,0.00011643,2]
[352880036,1739386236830,-500.0,0.00011643,2]
[352880037,1739386236842,-530.45,0.00011643,2]
[352880038,1739386236853,-2850.7,0.00011643,2]
[352880039,1739386236862,-500.0,0.00011643,2]
[352880040,1739386236872,-588.16,0.00011643,2]
[352880041,1739386236882,-1251.34,0.00011643,2]
[352880042,1739386236890,-500.0,0.00011759,2]
[352880043,1739386236900,-500.0,0.00011759,2]
[352880044,1739386236909,-500.0,0.00011759,2]
[352880045,1739386236918,-500.0,0.00011759,2]
[352880046,1739386236927,-501.59986121,0.0001176,2]
[352880047,1739386236937,-500.0,0.0001176,2]
[352880048,1739386236946,-500.0,0.0001176,2]
[352880049,1739386236955,-500.0,0.0001176,2]
[352880050,1739386236964,-500.0,0.0001176,2]
[352880051,1739386236974,-500.0,0.0001176,2]
[352880052,1739386236983,-500.0,0.0001176,2]
[352880053,1739386236992,-500.0,0.0001176,2]
[352880054,1739386237001,-500.0,0.0001176,2]
[352880055,1739386237011,-500.0,0.0001176,2]
[352880056,1739386237019,-500.0,0.0001176,2]
[352880057,1739386237029,-500.0,0.0001176,2]
[352880058,1739386237038,-500.0,0.0001176,2]
[352880059,1739386237047,-500.0,0.0001176,2]
[352880060,1739386237056,-500.0,0.0001176,2]
[352880061,1739386237065,-500.0,0.0001176,2]
[352880062,1739386237074,-500.0,0.0001176,2]
[352880063,1739386237083,-500.0,0.0001176,2]
[352880064,1739386237093,-500.0,0.0001176,2]
[352880065,1739386237102,-500.0,0.0001176,2]
[352880066,1739386237111,-162.77288074,0.0001176,2]
[352880067,1739386237120,-500.0,0.0001176,2]
[352880068,1739386237130,-500.0,0.0001176,2]
[352880069,1739386237139,-500.0,0.0001176,2]
[352880070,1739386237148,-500.0,0.0001176,2]
[352880071,1739386237157,-500.0,0.0001176,2]
[352880072,1739386237167,-500.0,0.0001176,2]
[352880073,1739386237176,-500.0,0.0001176,2]
[352880074,1739386237186,-500.0,0.0001176,2]
[352880075,1739386237195,-500.0,0.0001176,2]
[352880076,1739386237204,-500.0,0.0001176,2]
[352880077,1739386237213,-501.15220094,0.0001176,2]
[352880078,1739386237223,-500.0,0.0001176,2]
[352880079,1739386237232,-500.0,0.0001176,2]
[352880080,1739386237242,-246.24229999,0.0001176,2]
[352880081,1739386237251,-500.0,0.0001176,2]
[352880082,1739386237261,-500.0,0.0001176,2]
[352880083,1739386237271,-500.0,0.0001176,2]
[352880084,1739386237280,-500.0,0.0001176,2]
[352880085,1739386237289,-500.0,0.0001176,2]
[352880086,1739386237298,-500.0,0.0001176,2]
[352880087,1739386237307,-176.13621671,0.0001176,2]
[352880088,1739386237316,-500.0,0.0001176,2]
[352880089,1739386237325,-500.0,0.0001176,2]
[352880090,1739386237334,-500.0,0.0001176,2]
[352880091,1739386237343,-500.0,0.0001176,2]
[352880092,1739386237353,-500.0,0.0001176,2]
[352880093,1739386237362,-500.0,0.0001176,2]
[352880094,1739386237371,-500.0,0.0001176,2]
[352880095,1739386237381,-500.0,0.0001176,2]
[352880096,1739386237390,-500.0,0.0001176,2]
[352880097,1739386237399,-500.0,0.0001176,2]
[352880098,1739386237408,-500.0,0.0001176,2]
[352880099,1739386237418,-501.51614212,0.0001176,2]
[352880100,1739386237427,-500.0,0.0001176,2]
[352880101,1739386237436,-500.0,0.0001176,2]
[352880102,1739386237446,-500.0,0.0001176,2]
[352880103,1739386237456,-603.08767736,0.0001176,2]
[352880104,1739386237467,-500.0,0.0001176,2]
[352880105,1739386237476,-500.0,0.0001176,2]
[352880106,1739386237486,-500.0,0.0001176,2]
[352880107,1739386237495,-500.0,0.0001176,2]
[352880108,1739386237506,-500.0,0.0001176,2]
[352880109,1739386237515,-500.0,0.0001176,2]
[352880110,1739386237524,-500.0,0.0001176,2]
[352880111,1739386237535,-231.56196143,0.0001176,2]
[352880112,1739386237544,-501.84386738,0.0001176,2]
[352880113,1739386237554,-500.0,0.0001176,2]
[352880114,1739386237564,-500.0,0.0001176,2]
[352880115,1739386237575,-500.0,0.0001176,2]
[352880116,1739386237586,-502.61169903,0.0001176,2]
[352880117,1739386237596,-500.0,0.0001176,2]
[352880118,1739386237606,-500.0,0.0001176,2]
[352880119,1739386237617,-500.0,0.0001176,2]
[352880120,1739386237626,-501.56384328,0.0001176,2]
[352880121,1739386237635,-500.0,0.0001176,2]
[352880122,1739386237644,-500.0,0.0001176,2]
[352880123,1739386237653,-500.0,0.0001176,2]
[352880124,1739386237662,-500.0,0.0001176,2]
[352880125,1739386237672,-500.0,0.0001176,2]
[352880126,1739386237682,-500.0,0.0001176,2]
[352880127,1739386237692,-500.0,0.0001176,2]
[352880128,1739386237702,-500.0,0.0001176,2]
[352880129,1739386237712,-500.0,0.0001176,2]
[352880130,1739386237721,-500.0,0.0001176,2]
[352880131,1739386237731,-500.0,0.0001176,2]
[352880132,1739386237740,-628.74476192,0.0001176,2]
[352880133,1739386237750,-500.0,0.0001176,2]
[352880134,1739386237759,-500.0,0.0001176,2]
[352880135,1739386237768,-500.0,0.0001176,2]
[352880136,1739386237778,-500.0,0.0001176,2]
[352880137,1739386237787,-392.76298702,0.0001176,2]
[352880138,1739386237797,-500.0,0.0001176,2]
[352880139,1739386237806,-500.0,0.0001176,2]
[352880140,1739386237815,-502.74228486,0.0001176,2]
[352880142,1739386237824,-500.0,0.0001176,2]
[352880143,1739386237834,-500.0,0.0001176,2]
[352880144,1739386237843,-500.0,0.0001176,2]
[352880145,1739386237852,-500.0,0.0001176,2]
[352880146,1739386237862,-500.0,0.0001176,2]
[352880147,1739386237872,-500.0,0.0001176,2]
[352880148,1739386237883,-500.0,0.0001176,2]
[352880149,1739386237892,-500.0,0.0001176,2]
[352880151,1739386237902,-500.0,0.0001176,2]
[352880153,1739386237911,-500.0,0.0001176,2]
[352880155,1739386237922,-453.6850382,0.0001176,2]
[352880156,1739386237933,-500.0,0.0001176,2]
[352880157,1739386237942,-500.0,0.0001176,2]
[352880158,1739386237951,-500.0,0.0001176,2]
[352880159,1739386237960,-500.0,0.0001176,2]
[352880160,1739386237970,-500.0,0.0001176,2]
[352880161,1739386237979,-500.0,0.0001176,2]
[352880162,1739386237989,-489.15845413,0.0001176,2]
[352880163,1739386237999,-500.0,0.0001176,2]
[352880164,1739386238009,-500.0,0.0001176,2]
[352880165,1739386238018,-500.0,0.0001176,2]
[352880166,1739386238027,-500.0,0.00011761,2]
[352880167,1739386238037,-176.55585631,0.00011761,2]
[352880168,1739386238046,-500.0,0.00011762,2]
[352880169,1739386238055,-257.6,0.0001178,2]
[352880170,1739386238065,-500.0,0.0001178,2]
[352880171,1739386238074,-608.8,0.0001178,2]
[352880173,1739386238084,-843.29,0.0001178,2]
[352880174,1739386238093,-581.76,0.0001178,2]
[352880175,1739386238103,-2850.7,0.0001178,2]
[352880176,1739386238112,-500.0,0.0001178,2]
[352880177,1739386238121,-588.16,0.0001178,2]
[352880178,1739386238131,-1251.34,0.0001178,2]
[352880180,1739386238140,-500.0,0.00011897,2]
[352880181,1739386238150,-510.10829942,0.00011897,2]
[352880182,1739386238159,-500.0,0.00011897,2]
[352880183,1739386238169,-500.0,0.00011897,2]
[352880184,1739386238179,-500.0,0.00011897,2]
[352880185,1739386238189,-500.0,0.00011897,2]
[352880186,1739386238198,-500.0,0.00011917,2]
[352880187,1739386238207,-843.29,0.00011917,2]
[352880188,1739386238216,-2850.7,0.00011917,2]
[352880189,1739386238226,-544.63,0.00011917,2]
[352880190,1739386238235,-588.16,0.00011917,2]
[352880191,1739386238245,-1251.34,0.00011917,2]
[352880192,1739386238255,-500.0,0.00012054,2]
[352880193,1739386238264,-843.29,0.00012054,2]
[352880194,1739386238274,-2850.7,0.00012054,2]
[352880195,1739386238286,-588.16,0.00012054,2]
[352880196,1739386238297,-1251.34,0.00012054,2]
[352880197,1739386238306,-200.74558051,0.00012191,2]
[352880198,1739386238315,-843.29,0.00012191,2]
[352880199,1739386238325,-642.83979404,0.00012191,2]
[352880200,1739386238657,-500.0,0.00010958,2]
[352880201,1739386238666,-500.0,0.00010958,2]
[352880202,1739386238676,-500.0,0.00010958,2]
[352880203,1739386238690,-506.34203787,0.00010958,2]
[352880204,1739386238699,-500.0,0.00010958,2]
[352880205,1739386238710,-500.0,0.00010958,2]
[352880206,1739386238720,-500.0,0.00011095,2]
[352880207,1739386238731,-500.0,0.00011095,2]
[352880208,1739386238740,-287.45,0.00011232,2]
[352880209,1739386238751,-500.0,0.00011506,2]
[352880210,1739386238760,-500.0,0.00011643,2]
[352880211,1739386238770,-500.0,0.0001178,2]
[352880212,1739386238780,-410.98145257,0.00011917,2]
[352880213,1739386238790,-2207.86020596,0.00012191,2]
[352880214,1739386238799,-588.16,0.00012191,2]
[352880215,1739386238808,-1251.34,0.00012191,2]
[352880216,1739386238817,-843.29,0.00012328,2]
[352880217,1739386238827,-2850.7,0.00012328,2]
[352880218,1739386238836,-588.16,0.00012328,2]
[352880219,1739386238845,-1251.34,0.00012328,2]
[352880220,1739386238855,-843.29,0.00012465,2]
[352880221,1739386238864,-2850.7,0.00012465,2]
[352880222,1739386238874,-588.16,0.00012465,2]
[352880223,1739386238883,-1251.34,0.00012465,2]
[352880224,1739386238892,-843.29,0.00012602,2]
[352880225,1739386238901,-2850.7,0.00012602,2]
[352880226,1739386238910,-588.16,0.00012602,2]
[352880227,1739386238920,-1251.34,0.00012602,2]
[352880228,1739386238930,-843.29,0.00012739,2]
[352880229,1739386238939,-2850.7,0.00012739,2]
[352880230,1739386238950,-588.16,0.00012739,2]
[352880231,1739386238960,-1251.34,0.00012739,2]
[352880232,1739386238969,-843.29,0.00012876,2]
[352880233,1739386238979,-2850.7,0.00012876,2]
[352880234,1739386238989,-588.16,0.00012876,2]
[352880235,1739386238998,-1251.34,0.00012876,2]
[352880236,1739386239008,-176.96924368,0.000129,2]
[352880237,1739386239018,-843.29,0.00013013,2]
[352880238,1739386239028,-2850.7,0.00013013,2]
[352880239,1739386239038,-588.16,0.00013013,2]
[352880240,1739386239048,-1251.34,0.00013013,2]
[352880241,1739386239057,-843.29,0.0001315,2]
[352880242,1739386239066,-2850.7,0.0001315,2]
[352880243,1739386239076,-588.16,0.0001315,2]
[352880244,1739386239086,-1251.34,0.0001315,2]
[352880245,1739386239095,-843.29,0.00013287,2]
[352880246,1739386239105,-2850.7,0.00013287,2]
[352880247,1739386239115,-588.16,0.00013287,2]
[352880248,1739386239125,-1251.34,0.00013287,2]
[352880249,1739386239135,-843.29,0.00013424,2]
[352880250,1739386239145,-2850.7,0.00013424,2]
[352880251,1739386239155,-588.16,0.00013424,2]
[352880252,1739386239165,-1251.34,0.00013424,2]
[352880253,1739386239176,-843.29,0.00013561,2]
[352880254,1739386239192,-2850.7,0.00013561,2]
[352880255,1739386239201,-588.16,0.00013561,2]
[352880256,1739386239211,-1251.34,0.00013561,2]
[352880257,1739386239220,-843.29,0.00013698,2]
[352880258,1739386239231,-2850.7,0.00013698,2]
[352880259,1739386239241,-588.16,0.00013698,2]
[352880260,1739386239250,-1251.34,0.00013698,2]
[352880261,1739386239260,-166.825597,0.00013699,2]
[352880262,1739386239269,-843.29,0.00013835,2]
[352880263,1739386239279,-2850.7,0.00013835,2]
[352880264,1739386239289,-588.16,0.00013835,2]
[352880265,1739386239298,-1251.34,0.00013835,2]
[352880266,1739386239308,-843.29,0.00013972,2]
[352880267,1739386239317,-2850.7,0.00013972,2]
[352880268,1739386239327,-588.16,0.00013972,2]
[352880269,1739386239336,-1251.34,0.00013972,2]
[352880270,1739386239346,-1000.0,0.00014,2]
[352880271,1739386239355,-177.917,0.00014062,2]
[352880272,1739386239365,-843.2924952,0.00014109,2]
[352880273,1739386239375,-2850.8152157,0.00014109,2]
[352880274,1739386239384,-588.17,0.00014109,2]
[352880275,1739386239394,-1251.5250782,0.00014109,2]
[352880276,1739386239404,-151.0,0.000147,2]
[352880277,1739386239415,-500.0,0.000148,2]
[352880278,1739386239425,-623.3065985,0.00014801,2]
[352880279,1739386239440,-771.2096871,0.00014942,2]
[352880280,1739386239449,-339.0,0.00015,5]
[352880281,1739386239461,-1000.0,0.00015,2]
[352880282,1739386239471,-2043.39,0.00015,2]
[352880283,1739386239480,-166.0,0.00015068,2]
[352880284,1739386239491,-151.0,0.000153,2]
[352880285,1739386239503,-472.91532993,0.00015541,2]
[352880286,1739386239513,-189.0,0.000158,2]
[352880287,1739386239524,-160.0,0.00015806,3]
[352880288,1739386239536,-151.0,0.000159,2]
[352880289,1739386239545,-160.0,0.00015994,4]
[352880290,1739386239556,-1000.0,0.00016,2]
[352880291,1739386239565,-1000.0,0.00016,2]
[352880292,1739386239576,-396.0,0.00016016,2]
[352880293,1739386239586,-168.41666136,0.00016027,2]
[352880294,1739386239595,-607.48,0.00016164,2]
[352880295,1739386239605,-160.0,0.00016182,5]
[352880296,1739386239615,-151.0,0.00016284,2]
[352880297,1739386239626,-160.0,0.0001637,6]
[352880298,1739386239635,-151.0,0.000164,2]
[352880299,1739386239645,-544.5,0.00016436,2]
[352880300,1739386239655,-500.0,0.00016438,2]
[352880301,1739386239666,-188.0,0.00016438,2]
[352880302,1739386239676,-188.0,0.00016438,2]
[352880303,1739386239688,-188.0,0.00016438,2]
[352880304,1739386239698,-188.0,0.00016438,2]
[352880305,1739386239708,-188.0,0.00016438,2]
[352880306,1739386239718,-188.0,0.00016438,2]
[352880307,1739386239727,-188.0,0.00016438,2]
[352880308,1739386239738,-188.0,0.00016438,2]
[352880309,1739386239748,-188.0,0.00016438,2]
[352880310,1739386239759,-188.0,0.00016438,2]
[352880311,1739386239769,-153.03359446,0.00016438,2]
[352880312,1739386239779,-600.0,0.00016479,2]
[352880313,1739386239790,-2500.0,0.00016485,2]
[352880314,1739386239802,-2500.0,0.00016493,2]
[352880315,1739386239812,-339.0,0.000165,6]
[352880316,1739386239822,-151.0,0.000165,2]
[352880317,1739386239832,-500.0,0.00016501,2]
[352880318,1739386239843,-2500.0,0.00016502,2]
[352880319,1739386239853,-600.44121308,0.00016502,2]
[352880320,1739386239863,-160.0,0.00016558,7]
[352880321,1739386239872,-600.0,0.00016651,2]
[352880322,1739386239882,-160.0,0.00016746,8]
[352880323,1739386239892,-1023.52806974,0.00016823,2]
[352880324,1739386239902,-500.0,0.00016899,2]
[352880325,1739386239912,-638.15144351,0.00016899,2]
[352880326,1739386239923,-500.0,0.00016899,2]
[352880327,1739386239935,-1107.11653573,0.000169,2]
[352880328,1739386239946,-749.54735871,0.000169,2]
[352880329,1739386239955,-749.54735871,0.000169,2]
[352880330,1739386239965,-749.54735871,0.000169,2]
[352880331,1739386239974,-749.54735871,0.000169,2]
[352880332,1739386239984,-749.54735871,0.000169,2]
[352880333,1739386239994,-749.54735871,0.000169,2]
[352880334,1739386240003,-749.54735871,0.000169,2]
[352880335,1739386240013,-749.54735871,0.000169,2]
[352880336,1739386240023,-749.54735871,0.000169,2]
[352880337,1739386240033,-749.54735871,0.000169,2]
[352880338,1739386240044,-749.54735871,0.000169,2]
[352880339,1739386240054,-749.54735871,0.000169,2]
[352880340,1739386240064,-749.54735871,0.000169,2]
[352880341,1739386240075,-749.54735871,0.000169,2]
[352880342,1739386240085,-749.54735871,0.000169,2]
[352880343,1739386240095,-749.54735871,0.000169,2]
[352880344,1739386240105,-749.54735871,0.000169,2]
[352880345,1739386240115,-749.54735871,0.000169,2]
[352880346,1739386240126,-749.54735871,0.000169,2]
[352880347,1739386240136,-749.54,0.000169,2]
[352880348,1739386240146,-1748.94383698,0.000169,2]
[352880349,1739386240156,-1748.94383698,0.000169,2]
[352880350,1739386240166,-1748.94383698,0.000169,2]
[352880351,1739386240175,-1748.94383698,0.000169,2]
[352880352,1739386240185,-1748.94383698,0.000169,2]
[352880353,1739386240195,-1748.94383698,0.000169,2]
[352880354,1739386240205,-1748.94383698,0.000169,2]
[352880355,1739386240214,-1748.94383698,0.000169,2]
[352880356,1739386240223,-1748.94383698,0.000169,2]
[352880357,1739386240233,-1748.94383698,0.000169,2]
[352880358,1739386240242,-1748.94383698,0.000169,2]
[352880359,1739386240252,-1748.94383698,0.000169,2]
[352880360,1739386240262,-1748.94383698,0.000169,2]
[352880361,1739386240271,-1748.94383698,0.000169,2]
[352880362,1739386240281,-1748.94383698,0.000169,2]
[352880363,1739386240290,-1748.94383698,0.000169,2]
[352880364,1739386240299,-1748.94383698,0.000169,2]
[352880365,1739386240309,-1748.94383698,0.000169,2]
[352880366,1739386240318,-1748.94383698,0.000169,2]
[352880367,1739386240327,-1748.94,0.000169,2]
[352880368,1739386240337,-900.64430084,0.000169,2]
[352880369,1739386240346,-900.64430084,0.000169,2]
[352880370,1739386240355,-900.64430084,0.000169,2]
[352880371,1739386240365,-900.64430084,0.000169,2]
[352880372,1739386240374,-900.64430084,0.000169,2]
[352880373,1739386240383,-900.64430084,0.000169,2]
[352880374,1739386240393,-900.64430084,0.000169,2]
[352880375,1739386240403,-900.64430084,0.000169,2]
[352880376,1739386240412,-900.64430084,0.000169,2]
[352880377,1739386240422,-900.64430084,0.000169,2]
[352880378,1739386240434,-900.64430084,0.000169,2]
[352880379,1739386240443,-900.64430084,0.000169,2]
[352880380,1739386240453,-900.64430084,0.000169,2]
[352880381,1739386240465,-900.64430084,0.000169,2]
[352880382,1739386240474,-900.64430084,0.000169,2]